fUST/lending_fUST_20250225
["ID","MTS","AMOUNT","RATE_DAILY","PERIOD"]
[354349265,1740438671347,-618.53,0.00014684,2]
[354349266,1740438671356,-504.78,0.00014684,2]
[354349267,1740438671365,-1443.33,0.00014684,2]
[354349268,1740438671375,-567.72,0.00014684,2]
[354349269,1740438671384,-2659.86,0.00014684,2]
[354349270,1740438671395,-472.89612311,0.00014684,2]
[354349271,1740438671408,-27.10387689,0.00014684,2]
[354349272,1740438671418,-1173.9,0.00014684,2]
[354349273,1740438671429,-1578.42,0.00014684,2]
[354349274,1740438671439,-761.51,0.00014684,2]
[354349275,1740438671448,-807.98,0.00014684,2]
[354349276,1740438671458,-500.0,0.00014684,2]
[354349277,1740438671467,-3916.14,0.00014684,2]
[354349278,1740438671477,-214.374342,0.00014684,2]
[354349279,1740438671487,-9439.32,0.00014684,2]
[354349280,1740438671496,-500.0,0.00014684,2]
[354349281,1740438671506,-649.39,0.00014684,2]
[354349282,1740438671516,-824.14,0.00014684,2]
[354349283,1740438671526,-886.14,0.00014684,2]
[354349284,1740438671536,-663.35,0.00014684,2]
[354349285,1740438671546,-500.0,0.00014684,2]
[354349286,1740438671556,-725.8,0.00014684,2]
[354349287,1740438671566,-500.0,0.00014684,2]
[354349288,1740438671576,-500.0,0.00014684,2]
[354349289,1740438671586,-11569.59,0.00014684,2]
[354349290,1740438671595,-500.0,0.00014684,2]
[354349291,1740438671606,-500.0,0.00014684,2]
[354349292,1740438671616,-151.0,0.00014684,2]
[354349293,1740438671626,-232.17001561,0.00014684,2]
[354349294,1740438671638,-1037.02,0.00014684,2]
[354349295,1740438671648,-520.28,0.00014684,2]
[354349296,1740438671658,-500.0,0.00014684,2]
[354349297,1740438671668,-500.0,0.00014684,2]
[354349298,1740438671678,-2568.48,0.00014684,2]
[354349299,1740438671687,-500.0,0.00014684,2]
[354349300,1740438671697,-569.69,0.00014684,2]
[354349301,1740438671707,-2001.57,0.00014684,2]
[354349302,1740438671717,-500.0,0.00014684,2]
[354349303,1740438671727,-500.0,0.00014684,2]
[354349304,1740438671736,-1066.8,0.00014684,2]
[354349305,1740438671745,-1179.01,0.00014684,2]
[354349306,1740438671755,-914.26,0.00014684,2]
[354349307,1740438671764,-554.2,0.00014684,2]
[354349308,1740438671774,-4845.71,0.00014684,2]
[354349309,1740438671784,-1651.45,0.00014684,2]
[354349310,1740438671794,-500.0,0.00014684,2]
[354349311,1740438671804,-640.92,0.00014684,2]
[354349312,1740438671814,-629.83,0.00014684,2]
[354349313,1740438671824,-500.0,0.00014684,2]
[354349314,1740438671834,-500.0,0.00014684,2]
[354349315,1740438671844,-2353.75,0.00014684,2]
[354349316,1740438671854,-500.0,0.00014684,2]
[354349317,1740438671864,-151.0,0.000147,2]
[354349318,1740438671874,-500.0,0.00014767,2]
[354349319,1740438671899,-500.0,0.00014767,2]
[354349320,1740438671910,-500.0,0.00014767,2]
[354349321,1740438671920,-555.51,0.00014767,2]
[354349322,1740438671930,-500.0,0.00014767,2]
[354349323,1740438671940,-500.0,0.00014767,2]
[354349324,1740438671949,-500.0,0.00014767,2]
[354349325,1740438671959,-579.61,0.00014767,2]
[354349326,1740438671969,-500.0,0.00014767,2]
[354349327,1740438671980,-622.33,0.00014767,2]
[354349328,1740438671990,-500.0,0.00014767,2]
[354349329,1740438672000,-500.0,0.00014767,2]
[354349330,1740438672010,-151.0,0.00014767,2]
[354349331,1740438672019,-151.0,0.00014767,2]
[354349332,1740438672035,-500.0,0.00014767,2]
[354349333,1740438672045,-500.0,0.00014767,2]
[354349334,1740438672055,-947.21,0.00014767,2]
[354349335,1740438672066,-500.0,0.00014767,2]
[354349336,1740438672077,-695.76,0.00014767,2]
[354349337,1740438672087,-500.0,0.00014767,2]
[354349338,1740438672096,-500.0,0.00014767,2]
[354349339,1740438672107,-642.26,0.00014767,2]
[354349340,1740438672117,-612.02,0.00014767,2]
[354349341,1740438672127,-500.0,0.00014767,2]
[354349342,1740438672138,-36606.72,0.00014767,2]
[354349343,1740438672148,-618.53,0.00014767,2]
[354349344,1740438672159,-504.78,0.00014767,2]
[354349345,1740438672169,-1443.33,0.00014767,2]
[354349346,1740438672179,-567.72,0.00014767,2]
[354349347,1740438672190,-2659.86,0.00014767,2]
[354349348,1740438672201,-500.0,0.00014767,2]
[354349349,1740438672211,-1173.9,0.00014767,2]
[354349350,1740438672221,-1578.42,0.00014767,2]
[354349351,1740438672232,-761.51,0.00014767,2]
[354349352,1740438672242,-807.98,0.00014767,2]
[354349353,1740438672253,-500.0,0.00014767,2]
[354349354,1740438672263,-3916.14,0.00014767,2]
[354349355,1740438672274,-9439.32,0.00014767,2]
[354349356,1740438672284,-649.39,0.00014767,2]
[354349357,1740438672294,-824.14,0.00014767,2]
[354349358,1740438672304,-886.14,0.00014767,2]
[354349359,1740438672315,-663.35,0.00014767,2]
[354349360,1740438672326,-325.02,0.00014767,2]
[354349361,1740438672336,-725.8,0.00014767,2]
[354349362,1740438672347,-500.0,0.00014767,2]
[354349363,1740438672357,-11569.59,0.00014767,2]
[354349364,1740438672367,-186.8,0.00014767,2]
[354349365,1740438672377,-500.0,0.00014767,2]
[354349366,1740438672388,-1037.02,0.00014767,2]
[354349367,1740438672397,-520.28,0.00014767,2]
[354349368,1740438672408,-500.0,0.00014767,2]
[354349369,1740438672418,-500.0,0.00014767,2]
[354349370,1740438672428,-2568.48,0.00014767,2]
[354349371,1740438672438,-500.0,0.00014767,2]
[354349372,1740438672447,-569.69,0.00014767,2]
[354349373,1740438672457,-2001.57,0.00014767,2]
[354349374,1740438672468,-500.0,0.00014767,2]
[354349375,1740438672478,-500.0,0.00014767,2]
[354349376,1740438672487,-1066.8,0.00014767,2]
[354349377,1740438672497,-1179.01,0.00014767,2]
[354349378,1740438672507,-914.26,0.00014767,2]
[354349379,1740438672517,-554.2,0.00014767,2]
[354349380,1740438672527,-4845.71,0.00014767,2]
[354349381,1740438672536,-1651.45,0.00014767,2]
[354349382,1740438672745,-315.06,0.00014767,2]
[354349383,1740438672755,-640.92,0.00014767,2]
[354349384,1740438672766,-629.83,0.00014767,2]
[354349385,1740438672775,-500.0,0.00014767,2]
[354349386,1740438672785,-500.0,0.00014767,2]
[354349387,1740438672795,-2353.75,0.00014767,2]
[354349388,1740438672804,-500.0,0.00014767,2]
[354349389,1740438672814,-396.0,0.00014833,2]
[354349390,1740438672824,-500.0,0.00014849,2]
[354349391,1740438672834,-500.0,0.00014849,2]
[354349392,1740438672844,-500.0,0.00014849,2]
[354349393,1740438672855,-555.51,0.00014849,2]
[354349394,1740438672865,-500.0,0.00014849,2]
[354349395,1740438672875,-500.0,0.00014849,2]
[354349396,1740438672884,-500.0,0.00014849,2]
[354349397,1740438672896,-579.61,0.00014849,2]
[354349398,1740438672906,-500.0,0.00014849,2]
[354349399,1740438672916,-622.33,0.00014849,2]
[354349400,1740438672925,-500.0,0.00014849,2]
[354349401,1740438672935,-500.0,0.00014849,2]
[354349402,1740438672944,-204.303702,0.00014849,2]
[354349403,1740438672954,-500.0,0.00014849,2]
[354349404,1740438672964,-500.0,0.00014849,2]
[354349405,1740438672974,-947.21,0.00014849,2]
[354349406,1740438672983,-500.0,0.00014849,2]
[354349407,1740438672993,-695.76,0.00014849,2]
[354349408,1740438673002,-500.0,0.00014849,2]
[354349409,1740438673012,-500.0,0.00014849,2]
[354349410,1740438673023,-642.26,0.00014849,2]
[354349411,1740438673033,-500.0,0.00014849,2]
[354349412,1740438673049,-36606.72,0.00014849,2]
[354349413,1740438673060,-618.53,0.00014849,2]
[354349414,1740438673071,-504.78,0.00014849,2]
[354349415,1740438673082,-1443.33,0.00014849,2]
[354349416,1740438673093,-567.72,0.00014849,2]
[354349417,1740438673103,-2659.86,0.00014849,2]
[354349418,1740438673113,-500.0,0.00014849,2]
[354349419,1740438673125,-1173.9,0.00014849,2]
[354349420,1740438673136,-1578.42,0.00014849,2]
[354349421,1740438673149,-761.51,0.00014849,2]
[354349422,1740438673160,-807.98,0.00014849,2]
[354349423,1740438673171,-500.0,0.00014849,2]
[354349424,1740438673182,-3916.14,0.00014849,2]
[354349425,1740438673193,-9439.32,0.00014849,2]
[354349426,1740438673204,-649.39,0.00014849,2]
[354349427,1740438673214,-824.14,0.00014849,2]
[354349428,1740438673225,-886.14,0.00014849,2]
[354349429,1740438673235,-663.35,0.00014849,2]
[354349430,1740438673246,-725.8,0.00014849,2]
[354349431,1740438673257,-500.0,0.00014849,2]
[354349432,1740438673268,-11569.59,0.00014849,2]
[354349433,1740438673277,-431.81,0.00014849,2]
[354349434,1740438673287,-1037.02,0.00014849,2]
[354349435,1740438673297,-520.28,0.00014849,2]
[354349436,1740438673308,-500.0,0.00014849,2]
[354349437,1740438673318,-500.0,0.00014849,2]
[354349438,1740438673328,-2568.48,0.00014849,2]
[354349439,1740438673338,-500.0,0.00014849,2]
[354349440,1740438673348,-569.69,0.00014849,2]
[354349441,1740438673358,-2001.57,0.00014849,2]
[354349442,1740438673369,-500.0,0.00014849,2]
[354349443,1740438673380,-500.0,0.00014849,2]
[354349444,1740438673391,-1066.8,0.00014849,2]
[354349445,1740438673401,-1179.01,0.00014849,2]
[354349446,1740438673412,-914.26,0.00014849,2]
[354349447,1740438673422,-554.2,0.00014849,2]
[354349448,1740438673433,-4845.71,0.00014849,2]
[354349449,1740438673443,-1651.45,0.00014849,2]
[354349450,1740438673454,-640.92,0.00014849,2]
[354349451,1740438673464,-629.83,0.00014849,2]
[354349452,1740438673474,-500.0,0.00014849,2]
[354349453,1740438673485,-549.02,0.00014849,2]
[354349454,1740438673495,-2353.75,0.00014849,2]
[354349455,1740438673505,-500.0,0.00014849,2]
[354349456,1740438673516,-151.0,0.000149,2]
[354349457,1740438673527,-151.0,0.000149,2]
[354349458,1740438673536,-151.0,0.000149,2]
[354349459,1740438673546,-278.686533,0.000149,2]
[354349460,1740438673557,-278.686533,0.000149,2]
[354349461,1740438673568,-182.165176,0.000149,2]
[354349462,1740438673579,-151.0,0.000149,2]
[354349463,1740438673590,-151.0,0.000149,2]
[354349464,1740438673601,-246738.909866,0.000149,2]
[354349465,1740438673612,-367.234333,0.000149,2]
[354349466,1740438673623,-367.234333,0.000149,2]
[354349467,1740438673633,-157.098132,0.000149,2]
[354349468,1740438673644,-151.0,0.000149,2]
[354349469,1740438673655,-195.817772,0.000149,2]
[354349470,1740438673665,-151.0,0.000149,2]
[354349471,1740438673675,-151.0,0.000149,2]
[354349472,1740438673685,-151.0,0.000149,2]
[354349473,1740438673695,-151.0,0.000149,2]
[354349474,1740438673705,-177.027276,0.000149,2]
[354349475,1740438673727,-151.0,0.000149,2]
[354349476,1740438673738,-285.04,0.00014931,2]
[354349477,1740438673749,-212.407257,0.00014931,2]
[354349478,1740438673759,-500.0,0.00014931,2]
[354349479,1740438673770,-500.0,0.00014931,2]
[354349480,1740438673780,-555.51,0.00014931,2]
[354349481,1740438673791,-500.0,0.00014931,2]
[354349482,1740438673802,-247.38,0.00014931,2]
[354349483,1740438673813,-500.0,0.00014931,2]
[354349484,1740438673823,-579.61,0.00014931,2]
[354349485,1740438673834,-500.0,0.00014931,2]
[354349486,1740438673845,-622.33,0.00014931,2]
[354349487,1740438673856,-500.0,0.00014931,2]
[354349488,1740438673867,-406.43,0.00014931,2]
[354349489,1740438673877,-500.0,0.00014931,2]
[354349490,1740438673888,-500.0,0.00014931,2]
[354349491,1740438673915,-256.880528,0.00014931,2]
[354349492,1740438673927,-947.21,0.00014931,2]
[354349493,1740438673938,-500.0,0.00014931,2]
[354349494,1740438673949,-695.76,0.00014931,2]
[354349495,1740438673960,-500.0,0.00014931,2]
[354349496,1740438673971,-500.0,0.00014931,2]
[354349497,1740438673982,-176.11226,0.00014931,2]
[354349498,1740438673993,-642.26,0.00014931,2]
[354349499,1740438674004,-500.0,0.00014931,2]
[354349500,1740438674014,-36606.72,0.00014931,2]
[354349501,1740438674026,-618.53,0.00014931,2]
[354349502,1740438674038,-504.78,0.00014931,2]
[354349503,1740438674049,-1443.33,0.00014931,2]
[354349504,1740438674059,-567.72,0.00014931,2]
[354349505,1740438674071,-2659.86,0.00014931,2]
[354349506,1740438674081,-500.0,0.00014931,2]
[354349507,1740438674091,-1173.9,0.00014931,2]
[354349508,1740438674103,-1578.42,0.00014931,2]
[354349509,1740438674113,-761.51,0.00014931,2]
[354349510,1740438674123,-807.98,0.00014931,2]
[354349511,1740438674134,-500.0,0.00014931,2]
[354349512,1740438674146,-3916.14,0.00014931,2]
[354349513,1740438674157,-9439.32,0.00014931,2]
[354349514,1740438674168,-649.39,0.00014931,2]
[354349515,1740438674178,-824.14,0.00014931,2]
[354349516,1740438674189,-886.14,0.00014931,2]
[354349517,1740438674200,-663.35,0.00014931,2]
[354349518,1740438674211,-725.8,0.00014931,2]
[354349519,1740438674221,-500.0,0.00014931,2]
[354349520,1740438674235,-11569.59,0.00014931,2]
[354349521,1740438674246,-151.0,0.00014931,2]
[354349522,1740438674256,-1037.02,0.00014931,2]
[354349523,1740438674267,-520.28,0.00014931,2]
[354349524,1740438674277,-500.0,0.00014931,2]
[354349525,1740438674288,-500.0,0.00014931,2]
[354349526,1740438674298,-2568.48,0.00014931,2]
[354349527,1740438674308,-500.0,0.00014931,2]
[354349528,1740438674319,-569.69,0.00014931,2]
[354349529,1740438674330,-2001.57,0.00014931,2]
[354349530,1740438674341,-489.77,0.00014931,2]
[354349531,1740438674351,-500.0,0.00014931,2]
[354349532,1740438674361,-1066.8,0.00014931,2]
[354349533,1740438674372,-1179.01,0.00014931,2]
[354349534,1740438674382,-914.26,0.00014931,2]
[354349535,1740438674392,-554.2,0.00014931,2]
[354349536,1740438674403,-4845.71,0.00014931,2]
[354349537,1740438674413,-1651.45,0.00014931,2]
[354349538,1740438674425,-640.92,0.00014931,2]
[354349539,1740438674444,-629.83,0.00014931,2]
[354349540,1740438674458,-500.0,0.00014931,2]
[354349541,1740438674470,-2353.75,0.00014931,2]
[354349542,1740438674481,-500.0,0.00014931,2]
[354349543,1740438674491,-500.0,0.00015013,2]
[354349544,1740438674502,-561.22,0.00015013,2]
[354349545,1740438674512,-555.51,0.00015013,2]
[354349546,1740438674523,-500.0,0.00015013,2]
[354349547,1740438674533,-500.0,0.00015013,2]
[354349548,1740438674543,-579.61,0.00015013,2]
[354349549,1740438674553,-500.0,0.00015013,2]
[354349550,1740438674563,-622.33,0.00015013,2]
[354349551,1740438674574,-500.0,0.00015013,2]
[354349552,1740438674584,-151.0,0.00015013,2]
[354349553,1740438674594,-500.0,0.00015013,2]
[354349554,1740438674604,-500.0,0.00015013,2]
[354349555,1740438674614,-947.21,0.00015013,2]
[354349556,1740438674625,-500.0,0.00015013,2]
[354349557,1740438674635,-695.76,0.00015013,2]
[354349558,1740438674647,-227.53597572,0.00015013,2]
[354349559,1740438674656,-500.0,0.00015013,2]
[354349560,1740438674666,-642.26,0.00015013,2]
[354349561,1740438674676,-500.0,0.00015013,2]
[354349562,1740438674687,-36606.72,0.00015013,2]
[354349563,1740438674697,-618.53,0.00015013,2]
[354349564,1740438674707,-504.78,0.00015013,2]
[354349565,1740438674717,-1443.33,0.00015013,2]
[354349566,1740438674728,-567.72,0.00015013,2]
[354349567,1740438674739,-2659.86,0.00015013,2]
[354349568,1740438674750,-500.0,0.00015013,2]
[354349569,1740438674760,-1173.9,0.00015013,2]
[354349570,1740438674771,-1578.42,0.00015013,2]
[354349571,1740438674781,-761.51,0.00015013,2]
[354349572,1740438674792,-807.98,0.00015013,2]
[354349573,1740438674803,-500.0,0.00015013,2]
[354349574,1740438674814,-3916.14,0.00015013,2]
[354349575,1740438674825,-9439.32,0.00015013,2]
[354349576,1740438674836,-649.39,0.00015013,2]
[354349577,1740438674846,-824.14,0.00015013,2]
[354349578,1740438674857,-886.14,0.00015013,2]
[354349579,1740438674867,-663.35,0.00015013,2]
[354349580,1740438674879,-725.8,0.00015013,2]
[354349581,1740438674890,-275.64,0.00015013,2]
[354349582,1740438674900,-11569.59,0.00015013,2]
[354349583,1740438674910,-1037.02,0.00015013,2]
[354349584,1740438674921,-520.28,0.00015013,2]
[354349585,1740438674931,-500.0,0.00015013,2]
[354349586,1740438674942,-500.0,0.00015013,2]
[354349587,1740438674953,-2568.48,0.00015013,2]
[354349588,1740438674963,-312.84,0.00015013,2]
[354349589,1740438674974,-569.69,0.00015013,2]
[354349590,1740438674984,-2001.57,0.00015013,2]
[354349591,1740438674995,-500.0,0.00015013,2]
[354349592,1740438675005,-1066.8,0.00015013,2]
[354349593,1740438675016,-1179.01,0.00015013,2]
[354349594,1740438675028,-914.26,0.00015013,2]
[354349595,1740438675041,-554.2,0.00015013,2]
[354349596,1740438675052,-4845.71,0.00015013,2]
[354349597,1740438675062,-1651.45,0.00015013,2]
[354349598,1740438675073,-640.92,0.00015013,2]
[354349599,1740438675083,-629.83,0.00015013,2]
[354349600,1740438675093,-500.0,0.00015013,2]
[354349601,1740438675104,-2353.75,0.00015013,2]
[354349602,1740438675114,-500.0,0.00015013,2]
[354349603,1740438675125,-500.0,0.00015095,2]
[354349604,1740438675136,-555.51,0.00015095,2]
[354349605,1740438675147,-500.0,0.00015095,2]
[354349606,1740438675157,-500.0,0.00015095,2]
[354349607,1740438675167,-579.61,0.00015095,2]
[354349608,1740438675177,-500.0,0.00015095,2]
[354349609,1740438675187,-622.33,0.00015095,2]
[354349610,1740438675197,-500.0,0.00015095,2]
[354349611,1740438675207,-500.0,0.00015095,2]
[354349612,1740438675217,-500.0,0.00015095,2]
[354349613,1740438675227,-947.21,0.00015095,2]
[354349614,1740438675238,-235.7256387,0.00015095,2]
[354349615,1740438675248,-695.76,0.00015095,2]
[354349616,1740438675258,-302.85,0.00015095,2]
[354349617,1740438675267,-642.26,0.00015095,2]
[354349618,1740438675276,-500.0,0.00015095,2]
[354349619,1740438675285,-36606.72,0.00015095,2]
[354349620,1740438675295,-618.53,0.00015095,2]
[354349621,1740438675305,-504.78,0.00015095,2]
[354349622,1740438675314,-1443.33,0.00015095,2]
[354349623,1740438675325,-567.72,0.00015095,2]
[354349624,1740438675336,-2659.86,0.00015095,2]
[354349625,1740438675346,-500.0,0.00015095,2]
[354349626,1740438675357,-1578.42,0.00015095,2]
[354349627,1740438675367,-1173.9,0.00015095,2]
[354349628,1740438675378,-761.51,0.00015095,2]
[354349629,1740438675388,-807.98,0.00015095,2]
[354349630,1740438675399,-500.0,0.00015095,2]
[354349631,1740438675409,-3916.14,0.00015095,2]
[354349632,1740438675419,-9439.32,0.00015095,2]
[354349633,1740438675428,-649.39,0.00015095,2]
[354349634,1740438675438,-824.14,0.00015095,2]
[354349635,1740438675448,-886.14,0.00015095,2]
[354349636,1740438675458,-663.35,0.00015095,2]
[354349637,1740438675468,-725.8,0.00015095,2]
[354349638,1740438675478,-11569.59,0.00015095,2]
[354349639,1740438675489,-1037.02,0.00015095,2]
[354349640,1740438675499,-520.28,0.00015095,2]
[354349641,1740438675508,-500.0,0.00015095,2]
[354349642,1740438675519,-500.0,0.00015095,2]
[354349643,1740438675529,-2568.48,0.00015095,2]
[354349644,1740438675715,-569.69,0.00015095,2]
[354349645,1740438675727,-2001.57,0.00015095,2]
[354349646,1740438675737,-500.0,0.00015095,2]
[354349647,1740438675746,-1066.8,0.00015095,2]
[354349648,1740438675756,-1179.01,0.00015095,2]
[354349649,1740438675766,-914.26,0.00015095,2]
[354349650,1740438675775,-554.2,0.00015095,2]
[354349651,1740438675786,-4845.71,0.00015095,2]
[354349652,1740438675795,-1651.45,0.00015095,2]
[354349653,1740438675805,-640.92,0.00015095,2]
[354349654,1740438675814,-629.83,0.00015095,2]
[354349655,1740438675823,-551.54,0.00015095,2]
[354349656,1740438675832,-2353.75,0.00015095,2]
[354349657,1740438675842,-616.44,0.00015095,2]
[354349658,1740438675851,-150.0,0.00015101,2]
[354349659,1740438675860,-150.0,0.00015101,2]
[354349660,1740438675869,-150.0,0.00015101,2]
[354349661,1740438675878,-538.0,0.00015101,2]
[354349662,1740438675887,-1970.0,0.00015101,2]
[354349663,1740438675897,-511.0560175,0.0001512,2]
[354349664,1740438675906,-500.0,0.00015178,2]
[354349665,1740438675916,-555.51,0.00015178,2]
[354349666,1740438675925,-500.0,0.00015178,2]
[354349667,1740438675935,-226.22,0.00015178,2]
[354349668,1740438675945,-579.61,0.00015178,2]
[354349669,1740438675956,-500.0,0.00015178,2]
[354349670,1740438675966,-622.33,0.00015178,2]
[354349671,1740438675975,-500.0,0.00015178,2]
[354349672,1740438675984,-154.78,0.00015178,2]
[354349673,1740438675994,-500.0,0.00015178,2]
[354349674,1740438676003,-947.21,0.00015178,2]
[354349675,1740438676012,-695.76,0.00015178,2]
[354349676,1740438676022,-642.26,0.00015178,2]
[354349677,1740438676036,-500.0,0.00015178,2]
[354349678,1740438676045,-36606.72,0.00015178,2]
[354349679,1740438676054,-618.53,0.00015178,2]
[354349680,1740438676064,-504.78,0.00015178,2]
[354349681,1740438676075,-1443.33,0.00015178,2]
[354349682,1740438676086,-567.72,0.00015178,2]
[354349683,1740438676095,-2659.86,0.00015178,2]
[354349684,1740438676107,-500.0,0.00015178,2]
[354349685,1740438676117,-1578.42,0.00015178,2]
[354349686,1740438676127,-1173.9,0.00015178,2]
[354349687,1740438676136,-761.51,0.00015178,2]
[354349688,1740438676147,-807.98,0.00015178,2]
[354349689,1740438676156,-500.0,0.00015178,2]
[354349690,1740438676165,-3916.14,0.00015178,2]
[354349691,1740438676175,-9439.32,0.00015178,2]
[354349692,1740438676184,-649.39,0.00015178,2]
[354349693,1740438676195,-824.14,0.00015178,2]
[354349694,1740438676205,-886.14,0.00015178,2]
[354349695,1740438676216,-663.35,0.00015178,2]
[354349696,1740438676225,-725.8,0.00015178,2]
[354349697,1740438676235,-11569.59,0.00015178,2]
[354349698,1740438676244,-1037.02,0.00015178,2]
[354349699,1740438676254,-520.28,0.00015178,2]
[354349700,1740438676264,-500.0,0.00015178,2]
[354349701,1740438676274,-500.0,0.00015178,2]
[354349702,1740438676284,-2568.48,0.00015178,2]
[354349703,1740438676293,-569.69,0.00015178,2]
[354349704,1740438676303,-2001.57,0.00015178,2]
[354349705,1740438676312,-500.0,0.00015178,2]
[354349706,1740438676322,-1066.8,0.00015178,2]
[354349707,1740438676332,-1179.01,0.00015178,2]
[354349708,1740438676341,-914.26,0.00015178,2]
[354349709,1740438676351,-554.2,0.00015178,2]
[354349710,1740438676360,-4845.71,0.00015178,2]
[354349711,1740438676370,-1651.45,0.00015178,2]
[354349712,1740438676380,-640.92,0.00015178,2]
[354349713,1740438676389,-629.83,0.00015178,2]
[354349714,1740438676401,-2353.75,0.00015178,2]
[354349715,1740438676411,-511.0560175,0.0001522,2]
[354349716,1740438676420,-500.0,0.0001526,2]
[354349717,1740438676430,-555.51,0.0001526,2]
[354349718,1740438676440,-500.0,0.0001526,2]
[354349719,1740438676450,-579.61,0.0001526,2]
[354349720,1740438676460,-500.0,0.0001526,2]
[354349721,1740438676470,-622.33,0.0001526,2]
[354349722,1740438676480,-500.0,0.0001526,2]
[354349723,1740438676490,-500.0,0.0001526,2]
[354349724,1740438676500,-947.21,0.0001526,2]
[354349725,1740438676509,-695.76,0.0001526,2]
[354349726,1740438676519,-642.26,0.0001526,2]
[354349727,1740438676529,-500.0,0.0001526,2]
[354349728,1740438676539,-36606.72,0.0001526,2]
[354349729,1740438676548,-618.53,0.0001526,2]
[354349730,1740438676557,-504.78,0.0001526,2]
[354349731,1740438676567,-1443.33,0.0001526,2]
[354349732,1740438676576,-567.72,0.0001526,2]
[354349733,1740438676586,-2659.86,0.0001526,2]
[354349734,1740438676596,-426.94,0.0001526,2]
[354349735,1740438676605,-1578.42,0.0001526,2]
[354349736,1740438676616,-1173.9,0.0001526,2]
[354349737,1740438676625,-761.51,0.0001526,2]
[354349738,1740438676635,-807.98,0.0001526,2]
[354349739,1740438676645,-500.0,0.0001526,2]
[354349740,1740438676654,-3916.14,0.0001526,2]
[354349741,1740438676664,-9439.32,0.0001526,2]
[354349742,1740438676673,-649.39,0.0001526,2]
[354349743,1740438676682,-824.14,0.0001526,2]
[354349744,1740438676691,-886.14,0.0001526,2]
[354349745,1740438676701,-663.35,0.0001526,2]
[354349746,1740438676710,-725.8,0.0001526,2]
[354349747,1740438676720,-11569.59,0.0001526,2]
[354349748,1740438676729,-1037.02,0.0001526,2]
[354349749,1740438676739,-520.28,0.0001526,2]
[354349750,1740438676748,-233.51,0.0001526,2]
[354349751,1740438676758,-500.0,0.0001526,2]
[354349752,1740438676767,-2568.48,0.0001526,2]
[354349753,1740438676776,-569.69,0.0001526,2]
[354349754,1740438676785,-2001.57,0.0001526,2]
[354349755,1740438676795,-620.6,0.0001526,2]
[354349756,1740438676804,-1066.8,0.0001526,2]
[354349757,1740438676814,-1179.01,0.0001526,2]
[354349758,1740438676823,-914.26,0.0001526,2]
[354349759,1740438676832,-554.2,0.0001526,2]
[354349760,1740438676842,-4845.71,0.0001526,2]
[354349761,1740438676851,-1651.45,0.0001526,2]
[354349762,1740438676861,-640.92,0.0001526,2]
[354349763,1740438676871,-629.83,0.0001526,2]
[354349764,1740438676880,-2353.75,0.0001526,2]